Cogmind - Beta 9.3 @@@ ROGUE MODE // 2019.12.23 @ 20:29:17 // Winter2019/RPGLIKE Player: Exeight Result: Self-destructed Performance ------------- Evolutions (1) 500 Regions Visited (3) 600 Robots Destroyed (33) 165 Value Destroyed (857) 857 Prototype IDs (0) 0 Alien Tech Used (0) 0 Bonus (0) 0 TOTAL SCORE: 2122 Bonus ------- None Cogmind --------- Core Integrity 255/600 Matter 300/300 Energy 152/160 System Corruption 1% Temperature Cool (29) Movement Core (150) Ox2 Location -9/Materials Parts ------- > --- POWER (1) -------- Light Nuclear Core > --- PROPULSION (1) --- (None) > --- UTILITY (2) ------ Cooling System Signal Interpreter > --- WEAPON (1) ------- (None) > --- INVENTORY (0) ---- (None) Peak State ------------ > --- POWER ------------ Light Nuclear Core > --- PROPULSION ------- (None) > --- UTILITY ---------- Cooling System Signal Interpreter > --- WEAPON ----------- Plasma Flamer > --- INVENTORY -------- (None) [Rating: 11] Favorites ----------- Power Ion Engine Engine Ion Engine Power Core Light Nuclear Core Propulsion Aluminum Leg Leg Aluminum Leg Utility Signal Interpreter Device Heat Sink Processor Signal Interpreter Weapon EM Pulse Gun Energy Gun EM Pulse Gun Special Weapon Plasma Flamer Build | -11 -10 -10 -9 ------- Run | Scr Mat Min Mat Slots Evolved 1 | . 1 . . Power . | . . . . Propulsion . | . . . . Utility 1 | . 1 . . Weapon . | . . . . Parts Attached 9 | 3 3 1 2 Power 2 | 1 . . 1 Engine 1 | 1 . . . Core 1 | . . . 1 Reactor . | . . . . Propulsion 1 | 1 . . . Treads . | . . . . Leg 1 | 1 . . . Wheel . | . . . . Hover . | . . . . Flight . | . . . . Utility 3 | . 2 . 1 Device 2 | . 1 . 1 Storage . | . . . . Processor 1 | . 1 . . Hackware . | . . . . Protection . | . . . . Artifact . | . . . . Weapon 3 | 1 1 1 . Energy Gun 2 | 1 1 . . Energy Cannon . | . . . . Ballistic Gun . | . . . . Ballistic Cannon . | . . . . Launcher . | . . . . Special Weapon 1 | . . 1 . Impact Weapon . | . . . . Slashing Weapon . | . . . . Piercing Weapon . | . . . . Special Melee Weapon . | . . . . Unidentified Prototypes . | . . . . Parts Lost 1 | . . . 1 Power . | . . . . Propulsion . | . . . . Utility . | . . . . Weapon 1 | . . . 1 Highest Loss Streak 1 | . . . 1 Average Slot Usage (%) 97 | . 97 100 86 Engine 21 | . 24 20 15 Leg 20 | . 24 20 7 Device 11 | . 2 20 19 Processor 21 | . 22 20 20 Energy Gun 15 | . 24 9 . Special Weapon 6 | . . 10 19 Naked Turns . | . . . . Heaviest Build 10 | 7 9 9 10 Greatest Support 10 | 10 10 10 10 Greatest Overweight (x) 3 | . . . 3 Average Overweight (x) . | . . . 1 Largest Inventory Capacity . | . . . . Average Capacity . | . . . . Most Carried . | . . . . Average Carried . | . . . . Final Capacity . | . . . . Final Carried . | . . . . Class Distribution -------------------- 100% | Mutant Dominant Class ---------------- Mutant | -10/Materials Mutant | -10/Mines Mutant | -9/Materials Resources | -11 -10 -10 -9 ----------- Run | Scr Mat Min Mat Matter Collected 290 | 230 30 10 20 Remotely . | . . . . Salvage Created 642 | . 432 120 90 Parts 71 | . 42 14 15 Haulers Intercepted 2 | . 2 . . Recyclers Shooed 2 | . . 1 1 Parts Field Recycled . | . . . . Retrieved Matter . | . . . . Parts Self-Destructed . | . . . . Prevented . | . . . . Kills | -11 -10 -10 -9 ------- Run | Scr Mat Min Mat Combat Hostiles Destroyed 27 | . 13 9 5 Guns 18 | . 11 7 . Cannons 2 | . . 1 1 AOE 4 | . 2 . 2 Classes Destroyed 7 | . 5 . 2 Builder 1 | . . . 1 Hauler 2 | . 2 . . Operator 1 | . 1 . . Watcher 2 | . 2 . . Swarmer 9 | . 6 3 . Grunt 17 | . 7 6 4 Duelist 1 | . . . 1 Best Kill Streak 4 | . 4 3 3 Combat Bots Only 3 | . 3 3 2 Max Kills in Single Turn 2 | . 2 1 2 Gunslinging . | . . . . Exploded 2 | . 1 . 2 Melee . | . . . . Uniques/NPCs Destroyed . | . . . . Combat | -11 -10 -10 -9 -------- Run | Scr Mat Min Mat Damage Taken 1106 | . 477 337 292 Core 901 | . 394 271 236 Absorbed by Shields . | . . . . Redirected to Core 644 | . 254 197 193 Core Remaining (%) 90 | 100 . 81 . Volleys Fired 125 | . 70 39 16 Largest 1 | . 1 1 1 Hottest 100 | . 65 100 100 Shots Fired 125 | . 70 39 16 Gun 96 | . 70 26 . Cannon . | . . . . Launcher . | . . . . Special 29 | . . 13 16 Kinetic . | . . . . Thermal 60 | . 5 39 16 Explosive . | . . . . Electromagnetic 65 | . 65 . . Robot Hit Streak 15 | . 8 15 7 Robot Miss Streak 9 | . 9 5 1 Penetration Max . | . . . . Secondary Targets . | . . . . Shots Hit Robots 90 | . 41 36 13 Core Hits 73 | . 28 35 10 Critical Hits . | . . . . Critical Kills . | . . . . Critical Parts Destroyed . | . . . . Melee Attacks . | . . . . Impact . | . . . . Slashing . | . . . . Piercing . | . . . . Sneak Attacks . | . . . . Combat Hostiles . | . . . . Follow-up Attacks . | . . . . Damage Inflicted 1638 | . 753 465 420 Guns 914 | . 595 319 . Cannons . | . . . . Explosions 362 | . 158 . 204 Melee . | . . . . Ramming 3 | . . 2 1 Kinetic . | . . . . Thermal 905 | . 227 463 215 Explosive . | . . . . Electromagnetic 730 | . 526 . 204 Impact . | . . . . Slashing . | . . . . Piercing . | . . . . Highest Corruption 1 | . . . 1 Average Corruption 1 | . . . 1 Corruption Purged . | . . . . Overload Shots . | . . . . Overflow Damage . | . . . . Projectiles . | . . . . Explosions . | . . . . Melee . | . . . . Knockbacks . | . . . . Impact . | . . . . Kinetic . | . . . . Secondary . | . . . . Self-Inflicted Damage 94 | . 50 1 43 Shots 3 | . 2 . 1 Rammed 2 | . . 1 1 Targets Rammed 2 | . . 1 1 Kicked . | . . . . Crushed . | . . . . Highest Temperature 279 | . 124 279 44 Average Temperature 62 | . 35 86 18 Received Heat Transfer 432 | . 99 222 111 Effects 4 | . . 4 . Energy Bleed 2 | . . 2 . Interference 2 | . . 2 . Siege Activations . | . . . . Robots Corrupted . | . . . . Combat Hostiles . | . . . . Parts Fried 3 | . 3 . . Impact Corruptions . | . . . . Robots Melted 3 | . . 1 2 Combat Hostiles 3 | . . 1 2 Parts Melted 6 | . 1 . 5 Heat Transferred 2820 | . 335 1285 1200 Parts Sabotaged . | . . . . Parts Stolen . | . . . . Parts Stripped . | . . . . Power Chain Reactions 3 | . 3 . . Missiles Intercepted . | . . . . Alert | -11 -10 -10 -9 ------- Run | Scr Mat Min Mat Peak Influence 228 | . 228 209 185 Average Influence 85 | . 97 81 69 Maximum Alert Level 1 | . 1 1 . Low Security (%) 95 | 100 94 93 100 Level 1 4 | . 5 6 . Level 2 . | . . . . Level 3 . | . . . . Level 4 . | . . . . Level 5 . | . . . . High Security . | . . . . Max Security . | . . . . Squads Dispatched 2 | . 2 . . Investigation 2 | . 2 . . Extermination . | . . . . Reinforcement . | . . . . Assault . | . . . . Garrison . | . . . . Intercept . | . . . . Construction Impeded . | . . . . Haulers Reinforced . | . . . . Stealth | -11 -10 -10 -9 --------- Run | Scr Mat Min Mat Distress Signals 3 | . 1 . 2 Communications Jammed . | . . . . Distress Signals . | . . . . Times Spotted 39 | . 20 10 9 Peak Tracking Total 4 | . 4 3 4 Tactical Retreats 2 | . 1 . 1 Traps | -11 -10 -10 -9 ------- Run | Scr Mat Min Mat Traps Triggered 2 | . 2 . . Indirectly . | . . . . Trap Hack Attempts . | . . . . Triggered . | . . . . Disarmed . | . . . . Reprogrammed . | . . . . Reused . | . . . . Traps Extracted . | . . . . Installed . | . . . . Triggered . | . . . . Machines | -11 -10 -10 -9 ---------- Run | Scr Mat Min Mat Machines Disabled 2 | . . . 2 Max in Single Turn 1 | . . . 1 Machines Sabotaged . | . . . . Garrisons Compromised . | . . . . Overloaded Fab Kills . | . . . . Fab Network Shutdowns . | . . . . Hacking | -11 -10 -10 -9 --------- Run | Scr Mat Min Mat Machines Accessed 8 | . 6 . 2 Terminals 8 | . 6 . 2 Fabricators . | . . . . Repair Stations . | . . . . Recycling Units . | . . . . Scanalyzers . | . . . . Garrison Access . | . . . . Total Hacks 9 | . 7 . 2 Successful 8 | . 6 . 2 Failed 1 | . 1 . . Catastrophic . | . . . . Database Lockouts . | . . . . Manual 9 | . 7 . 2 Terminals 9 | . 7 . 2 Fabricators . | . . . . Repair Stations . | . . . . Recycling Units . | . . . . Scanalyzers . | . . . . Garrison Access . | . . . . Terminal Hacks . | . . . . Fabricator Hacks . | . . . . Repair Station Hacks . | . . . . Recycling Unit Hacks . | . . . . Scanalyzer . | . . . . Garrison Access Hacks . | . . . . Unauthorized Hacks 17 | . 13 . 4 Terminals 8 | . 6 . 2 Track 8 | . 6 . 2 Fabricators . | . . . . Repair Stations . | . . . . Recycling Units . | . . . . Scanalyzers . | . . . . Garrison Access . | . . . . Data Cores Recovered 1 | . 1 . . Used . | . . . . Hacking Detections 1 | . 1 . . Full Trace Events . | . . . . Feedback Events . | . . . . Feedback Blocked . | . . . . Robot Schematics Acquired . | . . . . Robots Built . | . . . . Matter . | . . . . Time . | . . . . Total Robot Build Rating . | . . . . Part Schematics Acquired . | . . . . Parts Built . | . . . . Matter . | . . . . Time . | . . . . Total Part Build Rating . | . . . . Parts Repaired . | . . . . Time . | . . . . Parts Recycled . | . . . . Recycled Matter . | . . . . Retrieved Matter . | . . . . Retrieved Components . | . . . . Parts Scanalyzed . | . . . . Part Schematics Acquired . | . . . . Parts Damaged . | . . . . Bothacking | -11 -10 -10 -9 ------------ Run | Scr Mat Min Mat Used RIF Installer . | . . . . Robots Hacked . | . . . . Non-combat . | . . . . Combat . | . . . . Robot Hacks Applied . | . . . . Relay Couplers Released . | . . . . Robots Rewired . | . . . . Allies Hacked . | . . . . Hacks Repelled . | . . . . Allies | -11 -10 -10 -9 -------- Run | Scr Mat Min Mat Total Allies . | . . . . Largest Group . | . . . . Highest-Rated Group . | . . . . Highest-Rated Ally . | . . . . Total Orders . | . . . . Ally Attacks . | . . . . Total Damage . | . . . . Kills . | . . . . Allies Corrupted . | . . . . Allies Melted . | . . . . Intel | -11 -10 -10 -9 ------- Run | Scr Mat Min Mat Robot Analysis Total . | . . . . Derelict Logs Recovered 2 | . . 2 . Drone Launches . | . . . . Drone Recoveries . | . . . . Exploration | -11 -10 -10 -9 ------------- Run | Scr Mat Min Mat Turns Passed 2330 | 46 1099 856 329 Spaces Moved 1432 | 39 676 549 168 Core 71 | 6 . . 65 Treads . | . . . . Legs 1361 | 33 676 549 103 Wheels . | . . . . Hover . | . . . . Flight . | . . . . Fastest Speed 50 | 50 120 120 120 Average Speed 123 | 109 120 120 150 Slowest Speed 200 | 120 120 120 200 Overloaded Moves . | . . . . Propulsion Burnouts . | . . . . Robots Hopped . | . . . . Cave-ins Triggered . | . . . . Exploration Rate (%) 53 | 3 94 99 18 Regions Visited 3 Branch Regions 1 Pre-discovered Areas . | . . . . Known Exits Taken 2 | . 1 1 . Unknown Exits Taken 1 | 1 . . . Scrap Searched 1 | . . 1 . Spaces Dug . | . . . . Terrain Destroyed 11 | . 11 . . Melee . | . . . . Projectile . | . . . . AOE 11 | . 11 . . Actions | -11 -10 -10 -9 --------- Run | Scr Mat Min Mat Total 1852 | 41 893 700 218 Wait 253 | . 122 102 29 Move 1429 | 38 675 548 168 Hop . | . . . . Pick Up . | . . . . Fast Attach 9 | 3 3 1 2 Attach . | . . . . Detach . | . . . . Swap . | . . . . Drop 4 | . 1 1 2 Fire 125 | . 70 39 16 Melee . | . . . . Ram 1 | . . . 1 Kick 1 | . . 1 . Crush . | . . . . Escape Stasis . | . . . . Rewire . | . . . . Trap . | . . . . Miscellaneous 30 | . 22 8 . Route ------- -11/Scrapyard -10/Materials (discovered 5 exits: *Mat x3 / *Min x2) -10/Mines (discovered 2 exits: *Mat x2) -9/Materials History --------- Turn | Location | Event 3 | -11/Scrapyard | Discovered new exit (range 16) 47 | -11/Scrapyard | Entered Materials 308 | -10/Materials | Build established: Mutant 482 | -10/Materials | Discovered new exit (range 12) 591 | -10/Materials | Discovered new exit (range 7) 710 | -10/Materials | Discovered new exit (range 16) 862 | -10/Materials | Reached level 2 915 | -10/Materials | Discovered new exit (range 10) 1022 | -10/Materials | Upgraded with Utility slot (x1) 1073 | -10/Materials | Discovered new exit (range 16) 1145 | -10/Materials | Identified exit to Mines 1146 | -10/Materials | Entered Mines 1186 | -10/Mines | Discovered new exit (range 6) 1277 | -10/Mines | Learned Materials emergency access door positions 1278 | -10/Mines | Learned Materials emergency access door positions 1281 | -10/Mines | Discovered new exit (range 4) 1285 | -10/Mines | Identified exit to Materials 1482 | -10/Mines | Reached level 3 1529 | -10/Mines | A weapon hastily lodged in a ceiling crevice suddenly fell to the ground 2002 | -10/Mines | Entered Materials 2004 | -9/Materials | Reached level 4 2304 | -9/Materials | Core integrity fell below 50% 2331 | -9/Materials | Self-destructed Last Messages --------------- Melted Ion Engine. G-34 Mercenary overheating. U-05 Engineer lays Concrete. W-16 Scout sends out distress signal. Melted Aluminum Leg. G-34 Mercenary critical meltdown. U-05 Engineer lays Concrete. Dropped Ion Engine. Acquired Lgt. Nuclear Core. U-05 Engineer lays Concrete. Acquired 10 matter. U-05 Engineer lays Concrete. R-06 Scavenger collects Aluminum Leg. U-05 Engineer lays Concrete. R-06 Scavenger collects Aluminum Leg. R-06 Scavenger collects Ion Engine. R-06 Scavenger collects Aluminum Leg. R-06 Scavenger collects Imp. Heat Sink. Slammed into U-05 Engineer. Plasma Flamer destroyed. Map ----- +----------------------------------------------------+ | ?????????????????????????????????????????????????? | | ?????????????????????????????????????????????????? | | ?????????????????????????????????????????????????? | | ?????????????????????????????????????????????????? | | ?????????????????????????????????????????????????? | | ?????????????????????????????????????????????????? | | ?????????????????????????????????????????????????? | | ?????????????????????????????????????????????????? | | #########+####???????????????????????????????????? | | # ????????????????????????????????????? | | # #?????????????????????????????????????? | | """ # #?????????????????????????????????????? | | """" + #?????????????+???????????????????????? | | """" # #????????????? ???????????????????????? | | """" # #????????????? ???????????????????????? | | """ # #????????????? ???????????????????????? | | # #????????????? ???????????????????????? | | ######## #????????????# #??????????????????????? | | # # #????????????# #??????????????????????? | | # !+ #????????????# #??????????????????????? | | # """%# #????????????#a#??????????????????????? | | # """=# #????????????# #??????????????????????? | | # """ # ###########??# ########+#?????????????? | | # # # [ [ #### #?????????????? | | ##+##### # * +% Y #?????????????? | | ?#*#???# # ####@ """ #?????????????? | | ##+##### / #??# "Y" ??????????????? | | =% # # ! #??# #?????????????? | | """ # #!%| #??# #?????????????? | | """ # # = #??# #?????????????? | | """ # # #??# r #?????????????? | | # ###########??#####" "## #?????????????? | | """ # #?????????????????"R"#??#?????????????? | | """ # #??????????????????""#????????????????? | | """ # #????????????????????#????????????????? | | # #?????????????????????????????????????? | | ##+##### #####?????????????????????????????????? | | # ???????????????????????????????? | | # ???????????????????????????????? | | # ???????????????????????????????? | | + ########### ????????????????????????????????? | | # #????????????????????????????????????????????? | | # #????????????????????????????????????????????? | | # #????????????????????????????????????????????? | | # #????????????????????????????????????????????? | | # #????????????????????????????????????????????? | | # #????????????????????????????????????????????? | | + #????????????????????????????????????????????? | | # #????????????????????????????????????????????? | | # #????????????????????????????????????????????? | +----------------------------------------------------+ Best States ------------- Heat Dissipation 47 Energy Generation 14 Energy Capacity 250 Matter Stores 300 Matter Capacity 300 Sight Range 16 Terrain Scan Density 10 Resistance: KI 20 Resistance: TH 20 Evasion (%) 40 Item Schematics ----------------- None Robot Schematics ------------------ None Fabricated ------------ Nothing Alien Tech Used ----------------- None Achievements -------------- None Challenges ------------ None RPGLIKE | -11 -10 -10 -9 --------- Run | Scr Mat Min Mat Levels Raised 3 | . 1 1 1 XP Earned 8600 | 3000 1750 1600 2250 XP Spent 5600 | 2850 1250 1500 . Upgrades 12 | 7 2 3 . Utility Slot 1 | . 1 . . KI Resistance % 4 | 4 . . . TH Resistance % 4 | 3 1 . . TH Damage % 3 | . . 3 . Protomatter Created 302 | . 165 54 83 Integrity Restored 584 | . 422 162 . Core 556 | . 394 162 . Parts 28 | . 28 . . Protomatter Decayed 99 | . 16 . 83 Game ------ Seed AlloySniperBeamcaster Manual? 0 Play Time 00:18:20 Cumulative 45.3 hours Start 2019.12.23 @ 20:11:06 End 2019.12.23 @ 20:29:17 Sessions 1 Manual Loads 0 Difficulty Rogue Special Mode Winter2019/RPGLIKE Game No. 49 Rogue 49 Adventurer 0 Explorer 0 Win Type - Total 0 Types 0/0/0/0/0/0/0 Lore% 20 Gallery% 25 Achievement% 26 Wizard Run 0 Options --------- ASCII 0 Keyboard 0 Movement Mouse Keybinds 0 Fullscreen 0 Font 32/SmallcapsGlow Map View 76x50 Tactical HUD 0 Map Filters NONE Filters NONE Steam 1 RUN: 1d12e21b-5756-43f9-9c37-fd5f38938477